fUSD/lending_fUSD_20250417
["ID","MTS","AMOUNT","RATE_DAILY","PERIOD"]
[358281772,1744894273074,-303.03775367,0.00750375,120]
[358281773,1744894273083,-353.77784226,0.0075049,14]
[358281774,1744894273093,-150.0,0.00750533,120]
[358281775,1744894273103,-150.0,0.00750835,120]
[358281776,1744894273112,-150.0,0.00751104,120]
[358281777,1744894273121,-171.42771428,0.00751123,120]
[358281778,1744894273131,-303.03775367,0.00751173,120]
[358281779,1744894273140,-150.0,0.00751644,120]
[358281780,1744894273150,-150.0,0.00751693,120]
[358281781,1744894273159,-206.0,0.0075179,120]
[358281782,1744894273169,-303.03775367,0.0075197,120]
[358281783,1744894273178,-150.0,0.00752551,120]
[358281784,1744894273188,-150.0,0.00752756,120]
[358281785,1744894273198,-303.03775367,0.00752768,120]
[358281786,1744894273208,-150.0,0.0075336,120]
[358281787,1744894273217,-150.0,0.00753409,120]
[358281788,1744894273226,-303.03775367,0.00753565,120]
[358281789,1744894273237,-150.0,0.00753868,120]
[358281790,1744894273246,-150.0,0.00754267,120]
[358281791,1744894273256,-303.03775367,0.00754362,120]
[358281792,1744894273266,-150.0,0.0075498,120]
[358281793,1744894273275,-150.0,0.00755125,120]
[358281794,1744894273285,-303.03775367,0.0075516,120]
[358281795,1744894273295,-150.0,0.00755615,120]
[358281796,1744894273309,-303.03775367,0.00755957,120]
[358281797,1744894273319,-150.0,0.00755983,120]
[358281798,1744894273329,-150.0,0.00756092,120]
[358281799,1744894273338,-125.18215507,0.00756755,120]
[358281800,1744894273391,-22.40168029,0.00139726,120]
[358281801,1744894273463,2119.86164522,0.00027,90]
[358281802,1744894273488,5446.13835478,0.00027,90]
[358281803,1744894273554,-0.31307743,0.00106848,120]
[358281804,1744894273569,-547.17499866,0.00106848,120]
[358281805,1744894274787,-57.02979217,0.00106848,120]
[358281806,1744894274803,-500.0,0.00106848,120]
[358281807,1744894274820,-612.85,0.00115067,120]
[358281808,1744894274836,-128.59831971,0.00139726,120]
[358281809,1744894274855,-151.0,0.00139726,120]
[358281810,1744894274871,-151.0,0.00139726,120]
[358281811,1744894274886,-151.0,0.00139726,120]
[358281812,1744894274902,-151.0,0.00139726,120]
[358281813,1744894274917,-151.0,0.00139726,120]
[358281814,1744894274932,-151.0,0.00139726,120]
[358281815,1744894274945,-50000.0,0.002,90]
[358281816,1744894274954,-618.42,0.00263013,120]
[358281817,1744894274965,-618.42,0.00271232,120]
[358281818,1744894274975,-618.42,0.00279452,120]
[358281819,1744894274984,-618.59048254,0.00287671,120]
[358281820,1744894274994,-579.0,0.00474334,120]
[358281821,1744894275004,-579.0,0.00474334,120]
[358281822,1744894275024,-177.8555986,0.00756755,120]
[358281823,1744894275034,-150.0,0.00756841,120]
[358281824,1744894275044,-150.0,0.00757204,120]
[358281825,1744894275054,-171.42771428,0.00757534,120]
[358281826,1744894275064,-303.03775367,0.00757552,120]
[358281827,1744894275075,-150.0,0.00757699,120]
[358281828,1744894275085,-150.0,0.00757871,120]
[358281829,1744894275095,-150.0,0.00758316,120]
[358281830,1744894275104,-303.03775367,0.00758349,120]
[358281831,1744894275114,-150.0,0.00758558,120]
[358281832,1744894275123,-303.03775367,0.00759147,120]
[358281833,1744894275133,-150.0,0.00759416,120]
[358281834,1744894275143,-132.60342613,0.00759428,120]
[358281835,1744894275169,-579.0,0.00474334,120]
[358281836,1744894326839,604.0,0.00045,120]
[358281837,1744894355851,250.0,0.00017,2]
[358281838,1744894356967,300.0,0.00019,2]
[358281839,1744894358012,350.0,0.00021,2]
[358281840,1744894359100,400.0,0.00023,2]
[358281841,1744894360395,450.0,0.00025,2]
[358281842,1744894361481,500.0,0.00027,2]
[358281843,1744894362572,550.0,0.00029,2]
[358281844,1744894363668,600.0,0.00031,2]
[358281845,1744894364739,650.0,0.00033,2]
[358281846,1744894365852,700.0,0.00035,2]
[358281847,1744894367014,750.0,0.00037,2]
[358281848,1744894491120,-254.55687195,0.00051122,120]
[358281849,1744894491145,-8051.38650803,0.00051123,5]
[358281850,1744894491170,-361.0085405,0.00051123,30]
[358281851,1744894491195,-453.0,0.00052,120]
[358281852,1744894498056,-2148.962926,0.00064251,30]
[358281853,1744894498082,-300.0,0.00064574,20]
[358281854,1744894498109,-37244.236,0.000649,2]
[358281855,1744894498137,-10306.801074,0.00065,120]
[358281856,1744894502056,-50000.0,0.00065,120]
[358281857,1744894552565,-368.39353314,0.000649,120]
[358281858,1744894552595,-49631.60646686,0.00065,120]
[358281859,1744894553370,-50000.0,0.00065,120]
[358281860,1744894554220,-50000.0,0.00065,120]
[358281861,1744894555099,-50000.0,0.00065,120]
[358281862,1744894556068,-50000.0,0.00065,120]
[358281863,1744894557342,-50000.0,0.00065,120]
[358281864,1744894558127,-50000.0,0.00065,120]
[358281865,1744894558992,-50000.0,0.00065,120]
[358281866,1744894559823,-50000.0,0.00065,120]
[358281867,1744894560051,894.84825802,0.0006,2]
[358281868,1744894560611,-50000.0,0.00065,120]
[358281869,1744894563437,1000.0,0.0006,2]
[358281871,1744894575920,-454544.0,0.00065,120]
[358281872,1744894626854,238.0,0.00055,30]
[358281873,1744894683850,3006.62721683,0.0001988,2]
[358281874,1744894786473,184.09,0.00059123,2]
[358281875,1744895005844,153.0,0.0006,2]
[358281876,1744895006209,150.0,0.000599,2]
[358281877,1744895041665,250.0,0.00055752,2]
[358281878,1744895086170,150.0,0.0005,120]
[358281879,1744895103811,947.07724585,0.00050583,2]
[358281880,1744895106263,1142.363655,0.0005043,5]
[358281881,1744895146136,-315.9481,0.000638,2]
[358281882,1744895146157,-224.6048,0.000638,2]
[358281883,1744895146177,-1000.0,0.000638,2]
[358281884,1744895146197,-608.28659304,0.000638,2]
[358281885,1744895150619,489.97,0.0006,2]
[358281886,1744895161926,700.0,0.00050682,15]
[358281887,1744895216474,1000.0,0.00050583,2]
[358281888,1744895221251,150.0,0.000597,2]
[358281889,1744895221637,150.0,0.000597,2]
[358281890,1744895221834,200.0,0.000597,2]
[358281891,1744895226095,-1891.71340696,0.000638,2]
[358281892,1744895226118,-482.57493894,0.00063873,15]
[358281893,1744895226142,-320.253,0.0006388,120]
[358281894,1744895226168,-254.317,0.0006388,120]
[358281895,1744895226198,-273.8952518,0.0006389,46]
[358281896,1744895226224,-500.0,0.00063899,120]
[358281897,1744895226249,-500.0,0.00063899,120]
[358281898,1744895226273,-500.0,0.00063899,120]
[358281899,1744895226299,-500.0,0.00063899,120]
[358281900,1744895226323,-500.0,0.00063899,120]
[358281901,1744895226348,-500.0,0.00063899,120]
[358281902,1744895226374,-500.0,0.00063899,120]
[358281903,1744895226401,-500.0,0.00063899,120]
[358281904,1744895226426,-500.0,0.00063899,120]
[358281905,1744895226450,-500.0,0.00063899,120]
[358281906,1744895226473,-500.0,0.00063899,120]
[358281907,1744895226494,-500.0,0.00063899,120]
[358281908,1744895226519,-500.0,0.00063899,120]
[358281909,1744895226544,-500.0,0.00063899,120]
[358281910,1744895226568,-500.0,0.00063899,120]
[358281911,1744895226592,-500.0,0.00063899,120]
[358281912,1744895226615,-500.0,0.00063899,120]
[358281913,1744895226638,-500.0,0.00063899,120]
[358281914,1744895226662,-500.0,0.00063899,120]
[358281915,1744895226685,-500.0,0.00063899,120]
[358281916,1744895226708,-500.0,0.00063899,120]
[358281917,1744895226730,-500.0,0.00063899,120]
[358281918,1744895226754,-500.0,0.00063899,120]
[358281919,1744895226778,-500.0,0.00063899,120]
[358281920,1744895226802,-500.0,0.00063899,120]
[358281921,1744895226825,-500.0,0.00063899,120]
[358281922,1744895226849,-500.0,0.00063899,120]
[358281923,1744895226873,-500.0,0.00063899,120]
[358281924,1744895226899,-500.0,0.00063899,120]
[358281925,1744895226924,-500.0,0.00063899,120]
[358281926,1744895226949,-424.18522787,0.00063899,120]
[358281927,1744895226978,-500.0,0.00063899,120]
[358281928,1744895227002,-500.0,0.00063899,120]
[358281929,1744895227028,-500.0,0.00063899,120]
[358281930,1744895227051,-500.0,0.00063899,120]
[358281931,1744895227075,-500.0,0.00063899,120]
[358281932,1744895227099,-500.0,0.00063899,120]
[358281933,1744895227123,-500.0,0.00063899,120]
[358281934,1744895227152,-500.0,0.00063899,120]
[358281935,1744895227178,-500.0,0.00063899,120]
[358281936,1744895227202,-500.0,0.00063899,120]
[358281937,1744895227225,-500.0,0.00063899,120]
[358281938,1744895227248,-500.0,0.00063899,120]
[358281939,1744895227273,-609.7,0.00063899,120]
[358281940,1744895227298,-598.31775241,0.00063899,120]
[358281941,1744895227324,-500.0,0.00063899,120]
[358281942,1744895227347,-500.0,0.00063899,2]
[358281943,1744895227372,-500.0,0.00063899,120]
[358281944,1744895227396,-500.0,0.00063899,120]
[358281945,1744895227418,-500.0,0.00063899,120]
[358281946,1744895227441,-500.0,0.00063899,120]
[358281947,1744895227465,-500.0,0.00063899,120]
[358281948,1744895227488,-500.0,0.00063899,120]
[358281949,1744895227513,-500.0,0.00063899,120]
[358281950,1744895227538,-500.0,0.00063899,120]
[358281951,1744895227562,-500.0,0.00063899,120]
[358281952,1744895227586,-500.0,0.00063899,120]
[358281953,1744895227612,-500.0,0.00063899,120]
[358281954,1744895227638,-500.0,0.00063899,120]
[358281955,1744895227665,-500.0,0.00063899,120]
[358281956,1744895227691,-500.0,0.00063899,120]
[358281957,1744895227716,-500.0,0.00063899,120]
[358281958,1744895227741,-500.0,0.00063899,120]
[358281959,1744895227767,-500.0,0.00063899,120]
[358281960,1744895227792,-500.0,0.00063899,120]
[358281961,1744895227818,-5428.545419,0.00063899,120]
[358281962,1744895228010,-500.0,0.00063899,120]
[358281963,1744895228041,-288.89433198,0.00063899,120]
[358281964,1744895228077,150.0,0.000597,2]
[358281965,1744895244127,-211.10566802,0.00063899,120]
[358281966,1744895244148,-500.0,0.00063899,120]
[358281967,1744895244170,-500.0,0.00063899,120]
[358281968,1744895244190,-500.0,0.00063899,120]
[358281969,1744895244210,-500.0,0.00063899,120]
[358281970,1744895244230,-500.0,0.00063899,120]
[358281971,1744895244251,-535.94,0.00063899,120]
[358281972,1744895244272,-500.0,0.00063899,120]
[358281973,1744895244292,-500.0,0.00063899,120]
[358281974,1744895244314,-500.0,0.00063899,120]
[358281975,1744895244334,-471.06,0.00063899,118]
[358281976,1744895244354,-500.0,0.00063899,120]
[358281977,1744895244375,-500.0,0.00063899,120]
[358281978,1744895244396,-500.0,0.00063899,120]
[358281979,1744895244417,-168.882587,0.00063899,120]
[358281980,1744895244437,-500.0,0.00063899,120]
[358281981,1744895244457,-420.277791,0.00063899,120]
[358281982,1744895244478,-500.0,0.00063899,120]
[358281983,1744895244498,-500.0,0.00063899,120]
[358281984,1744895244518,-609.9,0.00063899,120]
[358281985,1744895244539,-500.0,0.00063899,120]
[358281986,1744895244561,-16952.11225284,0.000639,2]
[358281987,1744895247095,-500.0,0.00063899,120]
[358281988,1744895247117,-2294.8025796,0.000639,2]
[358281989,1744895248084,-647.25484802,0.000639,2]
[358281990,1744895271433,2500.0,0.00050583,2]
[358281995,1744895369102,-831.28900281,0.00063013,2]
[358281996,1744895369123,-500.0,0.00063013,120]
[358281997,1744895369144,-500.0,0.00063013,120]
[358281998,1744895369167,-197.24520734,0.00063013,120]
[358281999,1744895372103,-302.75479266,0.00063013,120]
[358282000,1744895372125,-254.23987559,0.00063013,120]
[358282001,1744895372146,-500.0,0.00063013,120]
[358282002,1744895372167,-505.02,0.00063013,120]
[358282003,1744895372334,-500.0,0.00063013,120]
[358282004,1744895372356,-500.0,0.00063013,120]
[358282005,1744895372377,-127.27484026,0.00063013,120]
[358282006,1744895372406,-411.03281313,0.00063013,120]
[358282007,1744895372430,-500.0,0.00063013,120]
[358282008,1744895372452,-1938.74756676,0.00063773,15]
[358282009,1744895372472,-252.68079755,0.00063873,35]
[358282010,1744895393156,-500.0,0.00063013,120]
[358282011,1744895393179,-500.0,0.00063013,120]
[358282012,1744895393202,-500.0,0.00063899,120]
[358282013,1744895393236,-152.83969796,0.00063899,120]
[358282014,1744895393261,-500.0,0.00063899,120]
[358282015,1744895393285,-500.0,0.00063899,120]
[358282016,1744895393309,-500.0,0.00063899,120]
[358282017,1744895393334,-500.0,0.00063899,120]
[358282018,1744895393358,-500.0,0.00063899,120]
[358282019,1744895393382,-500.0,0.00063899,120]
[358282020,1744895393407,-500.0,0.00063899,120]
[358282021,1744895393430,-500.0,0.00063899,120]
[358282022,1744895393453,-500.0,0.00063899,120]
[358282023,1744895393479,-500.0,0.00063899,120]
[358282024,1744895393502,-500.0,0.00063899,120]
[358282025,1744895393527,-500.0,0.00063899,120]
[358282026,1744895393552,-500.0,0.00063899,120]
[358282027,1744895393576,-500.0,0.00063899,120]
[358282028,1744895393599,-500.0,0.00063899,120]
[358282029,1744895393623,-464.34969705,0.00063899,120]
[358282030,1744895393646,-500.0,0.00063899,120]
[358282031,1744895393668,-500.0,0.00063899,120]
[358282032,1744895393693,-500.0,0.00063899,120]
[358282033,1744895393716,-641.44325056,0.00063899,120]
[358282034,1744895393740,-500.0,0.00063899,120]
[358282035,1744895393764,-500.0,0.00063899,120]
[358282036,1744895393788,-500.0,0.00063899,120]
[358282037,1744895393811,-500.0,0.00063899,120]
[358282038,1744895393838,-500.0,0.00063899,120]
[358282039,1744895393863,-196.92,0.00063899,120]
[358282040,1744895393887,-500.0,0.00063899,120]
[358282041,1744895393912,-331.25,0.00063989,120]
[358282042,1744895393938,-494.27639329,0.0006399,120]
[358282043,1744895393961,-500.0,0.00063999,120]
[358282044,1744895393985,-500.0,0.00063999,120]
[358282045,1744895394009,-500.0,0.00063999,120]
[358282046,1744895394032,-500.0,0.00063999,120]
[358282047,1744895394055,-500.0,0.00063999,120]
[358282048,1744895394078,-219.24,0.00063999,120]
[358282049,1744895394105,-500.0,0.00063999,120]
[358282050,1744895394128,-298.49501163,0.00063999,120]
[358282051,1744895394151,-392.96668532,0.00063999,120]
[358282052,1744895394173,-500.0,0.00063999,120]
[358282053,1744895394196,-500.0,0.00063999,120]
[358282054,1744895394219,-500.0,0.00063999,120]
[358282055,1744895394242,-519.26305669,0.00063999,120]
[358282056,1744895394268,-500.0,0.00063999,120]
[358282057,1744895394293,-500.0,0.00063999,120]
[358282058,1744895394317,-500.0,0.00063999,120]
[358282059,1744895394340,-500.0,0.00063999,120]
[358282060,1744895394364,-500.0,0.00063999,120]
[358282061,1744895394388,-500.0,0.00063999,120]
[358282062,1744895394410,-500.0,0.00063999,120]
[358282063,1744895394433,-500.0,0.00063999,120]
[358282064,1744895394457,-500.0,0.00063999,120]
[358282065,1744895394481,-500.0,0.00063999,120]
[358282066,1744895394504,-500.0,0.00063999,120]
[358282067,1744895394529,-500.0,0.00063999,120]
[358282068,1744895394551,-500.0,0.00063999,120]
[358282069,1744895394573,-500.0,0.00063999,120]
[358282070,1744895394596,-500.0,0.00063999,120]
[358282071,1744895394619,-500.0,0.00063999,120]
[358282072,1744895394641,-500.0,0.00063999,120]
[358282073,1744895394668,-500.0,0.00063999,120]
[358282074,1744895394692,-500.0,0.00063999,120]
[358282075,1744895394716,-500.0,0.00063999,120]
[358282076,1744895394743,-503.27154328,0.00063999,120]
[358282077,1744895394767,-500.0,0.00063999,120]
[358282078,1744895394791,-500.0,0.00063999,120]
[358282079,1744895394814,-500.0,0.00063999,120]
[358282080,1744895394839,-500.0,0.00063999,120]
[358282081,1744895394862,-500.0,0.00063999,120]
[358282082,1744895394886,-500.0,0.00063999,120]
[358282083,1744895394910,-500.0,0.00063999,120]
[358282084,1744895394934,-500.0,0.00063999,120]
[358282085,1744895394961,-500.0,0.00063999,120]
[358282086,1744895394985,-500.0,0.00063999,120]
[358282087,1744895395008,-500.0,0.00063999,120]
[358282088,1744895395034,-500.0,0.00063999,120]
[358282089,1744895395058,-500.0,0.00063999,120]
[358282090,1744895395085,-500.0,0.00063999,120]
[358282091,1744895395111,-500.0,0.00063999,120]
[358282092,1744895395136,-500.0,0.00063999,120]
[358282093,1744895395160,-500.0,0.00063999,120]
[358282094,1744895395184,-500.0,0.00063999,120]
[358282095,1744895395209,-500.0,0.00063999,120]
[358282096,1744895395233,-500.0,0.00063999,120]
[358282097,1744895395260,-500.0,0.00063999,120]
[358282098,1744895395286,-500.0,0.00063999,120]
[358282099,1744895395311,-500.0,0.00063999,120]
[358282100,1744895395335,-500.0,0.00063999,120]
[358282101,1744895395358,-500.0,0.00063999,120]
[358282102,1744895395382,-500.0,0.00063999,120]
[358282103,1744895395407,-500.0,0.00063999,120]
[358282104,1744895395431,-500.0,0.00063999,120]
[358282105,1744895395455,-500.0,0.00063999,120]
[358282106,1744895395479,-500.0,0.00063999,120]
[358282107,1744895395511,-500.0,0.00063999,120]
[358282108,1744895395542,-500.0,0.00063999,120]
[358282109,1744895395567,-500.0,0.00063999,120]
[358282110,1744895395592,-500.0,0.00063999,120]
[358282111,1744895395617,-500.0,0.00063999,120]
[358282112,1744895395645,-5285.68466522,0.00064,120]
[358282113,1744895398249,1565.41,0.00059,120]
[358282114,1744895404365,2715.28,0.00050673,2]
[358282120,1744895432279,-1429.82091841,0.00050683,120]
[358282181,1744895433216,162.81,0.00050941,2]
[358282610,1744895438108,-3570.17908159,0.00050683,120]
[358282611,1744895438118,-68057.89682356,0.00050683,120]
[358282617,1744895438315,-53265.56305286,0.00050683,120]
[358282619,1744895438330,-837.3995428,0.00050683,120]
[358282620,1744895438341,-3860.3565,0.00050683,120]
[358282621,1744895438353,-155412.8258223,0.00050683,120]
[358282622,1744895438364,-652.01767959,0.00050683,120]
[358282623,1744895438379,-2373.07618699,0.00050683,120]
[358282624,1744895438434,-13654.57906246,0.00050683,120]
[358282625,1744895438444,-1418.00251772,0.00050683,30]
[358282626,1744895438455,-8139.8719264,0.00050683,30]
[358282667,1744895440287,-257.99429994,0.00050683,30]
[358282668,1744895440400,-1710.19466749,0.00050683,30]
[358282669,1744895440413,-168101.78848017,0.00050683,30]
[358282670,1744895440422,-385.43,0.00063013,120]
[358282671,1744895440432,-500.0,0.00063013,2]
[358282672,1744895440442,-500.0,0.00063013,120]
[358282673,1744895440452,-406.63,0.00063013,120]
[358282674,1744895440461,-500.0,0.00063013,120]
[358282675,1744895440471,-179.39370182,0.00063013,5]
[358282676,1744895440480,-500.0,0.00063013,120]
[358282677,1744895440490,-500.0,0.00063013,120]
[358282678,1744895440499,-476.65,0.00063013,120]
[358282679,1744895440509,-162.81,0.00063676,2]
[358282680,1744895440518,-801.31,0.00063813,2]
[358282681,1744895440527,-150.0,0.00063861,30]
[358282682,1744895440537,-963.29438951,0.00063873,35]
[358282683,1744895440547,-500.0,0.00063899,30]
[358282684,1744895440556,-500.0,0.00063899,120]
[358282685,1744895440567,-500.0,0.00063899,120]
[358282686,1744895440577,-500.0,0.00063899,120]
[358282687,1744895440587,-517.3283485,0.00063899,120]
[358282688,1744895440596,-500.0,0.00063899,120]
[358282689,1744895440607,-500.0,0.00063899,120]
[358282690,1744895440616,-500.0,0.00063899,120]
[358282691,1744895440626,-411.17230505,0.00063899,120]
[358282692,1744895440636,-500.0,0.00063899,120]
[358282693,1744895440646,-500.0,0.00063899,120]
[358282694,1744895440656,-241038.11051954,0.000639,2]
[358282695,1744895440666,-500.0,0.00063973,15]
[358282696,1744895440676,-245092.591405,0.0006399,5]
[358282697,1744895440687,-104794.067846,0.0006399,5]
[358282698,1744895440697,-1000.0,0.00063999,35]
[358282699,1744895440708,-5122.65,0.00063999,7]
[358282700,1744895440718,-2000.0,0.00063999,120]
[358282701,1744895440728,-500.0,0.00063999,120]
[358282702,1744895440738,-500.0,0.00063999,120]
[358282704,1744895440748,-500.0,0.00063999,120]
[358282706,1744895440758,-577.23455589,0.00063999,120]
[358282707,1744895440769,-500.0,0.00063999,120]
[358282708,1744895440778,-500.0,0.00063999,120]
[358282709,1744895440788,-505.77665128,0.00063999,120]
[358282710,1744895440799,-500.0,0.00063999,120]
[358282711,1744895440811,-430.23203876,0.00063999,120]
[358282712,1744895440820,-65855.63618783,0.00064,120]
[358282713,1744895440841,-411.36404276,0.00064,120]
[358282714,1744895440856,-1203.2499875,0.00064,120]
[358282715,1744895440868,-32587.06109324,0.00064,120]
[358282716,1744895440885,-947.66428876,0.00064,120]
[358282717,1744895440910,-482.56,0.00063999,120]
[358282718,1744895440923,-17.44,0.00063999,120]
[358282719,1744895440933,-492.6769997,0.00064,120]
[358282780,1744895444499,-500.0,0.00063013,120]
[358282781,1744895444507,-500.0,0.00063013,120]
[358282782,1744895444517,-1678.87507302,0.00064,120]
[358282786,1744895446988,-162681.66539562,0.00064,120]
[358282787,1744895447076,-500.0,0.00063899,120]
[358282788,1744895447086,-83305.6284487,0.00064,120]
[358282789,1744895447149,-53903.88571121,0.00064,120]
[358282790,1744895447161,-36460.54596546,0.00064,120]
[358282791,1744895447174,-5102.20894791,0.00064,120]
[358282792,1744895447185,-58033.93470539,0.00064,120]
[358282793,1744895447197,-25068.35848768,0.00064,120]
[358282794,1744895447207,-2549.33,0.00064053,2]
[358282795,1744895447216,-3246.42,0.00064178,2]
[358282796,1744895447225,-158.23,0.00064678,2]
[358282797,1744895447235,-16689.85365451,0.0006489,5]
[358282798,1744895447250,-8425.0,0.0006489,5]
[358282799,1744895447269,-500.0,0.00063999,120]
[358282800,1744895447279,-576.24352072,0.0006489,5]
[358282801,1744895447919,-17973.09776077,0.0006489,5]
[358282802,1744895447930,-4597.5645,0.000649,2]
[358282803,1744895447940,-72435.24195689,0.000649,120]
[358282804,1744895447959,-16452.75804311,0.000649,120]
[358282805,1744895447969,-503.83629314,0.00064973,15]
[358282806,1744895447980,-507.6742836,0.00064973,15]
[358282807,1744895447990,-8732.8389872,0.00064989,5]
[358282808,1744895448000,-130992.584808,0.0006499,5]
[358282809,1744895448010,-276444.59245914,0.00065,120]
[358282810,1744895448019,-494.88,0.00065,60]
[358282811,1744895448030,-1000000.0,0.00065,120]
[358282812,1744895448039,-299000.0,0.00065,120]
[358282813,1744895448049,-391.17797376,0.00065502,2]
[358282814,1744895448058,-1938.74756669,0.00065602,15]
[358282815,1744895448070,-482.5749389,0.00065654,15]
[358282816,1744895448080,-200.0,0.00065707,2]
[358282817,1744895448090,-260.69,0.00065894,30]
[358282818,1744895448100,-1133.49,0.00066049,2]
[358282819,1744895448111,-200.0,0.00066132,30]
[358282820,1744895448120,-1024.48,0.00066631,2]
[358282821,1744895448130,-158.23,0.00066942,2]
[358282822,1744895448139,-1938.74756669,0.00067432,15]
[358282823,1744895448149,-482.5749389,0.00067435,15]
[358282824,1744895448158,-172.97,0.00068116,2]
[358282825,1744895448167,-2315.81,0.00068429,2]
[358282826,1744895448177,-2000.0,0.00068612,12]
[358282827,1744895448186,-158.23,0.00069206,2]
[358282828,1744895448196,-482.5749389,0.00069215,15]
[358282829,1744895448206,-1938.74756669,0.00069261,15]
[358282830,1744895448216,-170.0,0.00069407,120]
[358282831,1744895448226,-171.71893617,0.00069452,15]
[358282832,1744895448235,-596.52682411,0.00069544,120]
[358282833,1744895448245,-500000.0,0.0007,120]
[358282834,1744895448255,-155.06676558,0.00070199,2]
[358282835,1744895448265,-16900.37353787,0.00070199,2]
[358282836,1744895448274,-250.0,0.00070299,120]
[358282837,1744895448283,-482.5749389,0.00070996,15]
[358282838,1744895448292,-1938.74756669,0.00071091,15]
[358282839,1744895448300,-500.0,0.00071232,120]
[358282840,1744895448309,-273.02,0.00071232,120]
[358282841,1744895448319,-500.0,0.00071232,120]
[358282842,1744895448329,-500.0,0.00071232,120]
[358282843,1744895448338,-500.0,0.00071232,120]
[358282844,1744895448347,-500.0,0.00071232,120]
[358282845,1744895448357,-500.0,0.00071232,2]
[358282846,1744895448366,-500.0,0.00071232,120]
[358282847,1744895448375,-500.0,0.00071232,120]
[358282848,1744895448385,-500.0,0.00071232,120]
[358282849,1744895448394,-500.0,0.00071232,120]
[358282850,1744895448403,-231.9,0.00071232,120]
[358282851,1744895448412,-158.23,0.0007147,2]
[358282852,1744895448422,-211.35,0.00071667,120]
[358282853,1744895448431,-500.0,0.00072118,120]
[358282854,1744895448440,-500.0,0.00072118,120]
[358282855,1744895448448,-500.0,0.00072118,120]
[358282856,1744895448457,-500.0,0.00072118,120]
[358282857,1744895448467,-500.0,0.00072118,120]
[358282858,1744895448475,-500.0,0.00072118,120]
[358282859,1744895448484,-500.0,0.00072118,120]
[358282860,1744895448493,-500.0,0.00072118,120]
[358282861,1744895448502,-500.0,0.00072118,120]
[358282862,1744895448511,-500.0,0.00072118,120]
[358282863,1744895448520,-500.0,0.00072118,120]
[358282864,1744895448528,-500.0,0.00072118,120]
[358282865,1744895448537,-500.0,0.00072118,120]
[358282866,1744895448546,-500.0,0.00072118,120]
[358282867,1744895448555,-500.0,0.00072118,120]
[358282868,1744895448565,-500.0,0.00072118,120]
[358282869,1744895448574,-500.0,0.00072118,120]
[358282870,1744895448583,-500.0,0.00072118,120]
[358282871,1744895448592,-500.0,0.00072118,120]
[358282872,1744895448601,-636.9,0.00072118,120]
[358282873,1744895448610,-500.0,0.00072118,120]
[358282874,1744895448620,-500.0,0.00072118,120]
[358282875,1744895448630,-520.94,0.00072118,120]
[358282876,1744895448641,-500.0,0.00072118,120]
[358282877,1744895448650,-500.0,0.00072118,120]
[358282878,1744895448660,-500.0,0.00072118,120]
[358282879,1744895448670,-500.0,0.00072118,120]
[358282880,1744895448679,-500.0,0.00072118,120]